{"text_format":"1","workbook":"xlsx","n_sheets":3,"sheets":["Prompt","Cedula8BP","Enviar"],"not_rendered":{"charts":0,"images":4,"macros":1,"external_links":0,"defined_names":0,"comments":0,"pivot_tables":0},"unopened":[],"bounds":{"document_bytes":16777216,"sheet_cells":100000,"rows_first":2000,"rows_last":500,"rows_between":2000,"halvings":0,"cell_chars":16384,"cell_head_chars":4096},"cells_cut":0,"cells_raw":0,"read":"whole","date_system":"1900"}

{"sheet":"Prompt","index":0,"n_rows":38,"n_cols":4,"rows_kept":38,"cut":false,"hidden":false,"merged":[[0,3,1,5],[3,1,5,8],[8,1,9,8],[37,1,38,8]]}
[null,null,null,"¡ATENCIÓN!"]
[]
[]
[null,"Para hacer uso de las funcionalidades de esta Cédula Electrónica debe habilitar macros"]
[]
[]
[]
[]
[null,"Si utiliza Excel 2000, 2002, 2003 siga el siguiente procedimiento:"]
[]
[]
[]
[]
[]
[]
[]
[]
[]
[]
[]
[]
[]
[]
[]
[]
[]
[]
[]
[]
[]
[]
[]
[]
[]
[]
[]
[]
[null,"Si utiliza Excel 2007 siga el siguiente procedimiento:"]

{"sheet":"Cedula8BP","index":1,"n_rows":92,"n_cols":20,"rows_kept":92,"cut":false,"hidden":true,"merged":[[50,2,50,6],[50,7,50,10],[50,11,50,15],[22,2,24,5],[47,2,47,5],[49,2,49,6],[48,2,48,6],[42,3,42,5],[33,2,35,5],[34,14,34,15],[34,8,34,9],[34,10,34,11],[33,6,34,7],[34,12,34,13],[34,16,34,17],[34,18,34,19],[23,14,23,15],[23,16,23,17],[22,6,23,7],[23,8,23,9],[1,16,3,19],[23,12,23,13],[23,18,23,19],[1,6,1,14],[2,6,2,14],[23,10,23,11],[14,6,14,18],[12,17,12,18],[12,6,12,7],[16,15,16,18],[16,6,16,12],[3,8,3,12],[50,16,50,19],[47,16,47,19],[48,7,48,10],[47,7,47,10],[47,11,47,15],[48,11,48,15],[48,16,48,19],[49,11,49,15],[49,16,49,19],[49,7,49,10]]}
[]
[null,null,null,null,null,null,"CENSO EDUCATIVO 2024",null,null,null,null,null,null,null,null,null,"8BP"]
[null,null,null,null,null,null,"EDUCACIÓN BÁSICA ESPECIAL"]
[null,null,null,null,null,null,null,null,"PRIMARIA"]
[null,null,null,"Version :",1]
[null,null,"INSTRUCCIONES DEL FORMATO ELECTRÓNICO "]
[]
[]
[]
[null,null,"IDENTIFICACIÓN DEL SERVICIO EDUCATIVO"]
[]
[]
[null,null,"1. CÓDIGO MODULAR :",null,null,null,null,null,null,null,null,null,null,"2. CÓDIGO DE LOCAL EDUCATIVO :"]
[]
[null,null,"3. NOMBRE DEL SERVICIO :",null,null,null,""]
[]
[null,null,"4. DISTRITO :",null,null,null,"",null,null,null,null,null,null,null,"LOCALIDAD :  ",""]
[]
[]
[null,null,"100. RESULTADO DEL EJERCICIO EDUCATIVO."]
[null,null,"Complete y remita esta sección entre diciembre de 2024 y enero de 2025"]
[null,null,"101. EN EDUCACIÓN PRIMARIA, POR GRADO DE ESTUDIO Y SEXO, SEGÚN SITUACIÓN DEL EJERCICIO EDUCATIVO 2024."]
[null,null,"SITUACIÓN",null,null,null,"TOTAL",null,"GRADO DE ESTUDIO Y SEXO"]
[null,null,null,null,null,null,null,null,"1º",null,"2º",null,"3º",null,"4º",null,"5º",null,"6º"]
[null,null,null,null,null,null,"H","M","H","M","H","M","H","M","H","M","H","M","H","M"]
["00",null,"TOTAL Matrícula",null,null,null,{"$f":"SUM(G27:G30)","v":0},0,0,0,0,0,0,0,0,0,0,0,0,0]
["01",null,"Promovidos de grado",null,null,null,{"$f":"I27+K27+M27+O27+Q27+S27","v":0},0]
["02",null,"Trasladados a otros SS.EE.",null,null,null,{"$f":"I28+K28+M28+O28+Q28+S28","v":0},{"$f":"J28+L28+N28+P28+R28+T28","v":0}]
["03",null,"Retirados",null,null,null,{"$f":"I29+K29+M29+O29+Q29+S29","v":0},{"$f":"J29+L29+N29+P29+R29+T29","v":0}]
["04",null,"Fallecidos",null,null,null,0,0]
[]
[]
[null,null,"102. RETIRADOS, POR GRADO DE ESTUDIO, SEGÚN MOTIVO"]
[null,null,"MOTIVO",null,null,null,"TOTAL",null,"GRADO DE ESTUDIO Y SEXO"]
[null,null,null,null,null,null,null,null,"1º",null,"2º",null,"3º",null,"4º",null,"5º",null,"6º"]
[null,null,null,null,null,null,"H","M","H","M","H","M","H","M","H","M","H","M","H","M"]
["00",null,"TOTAL Retirados",null,null,null,{"$f":"SUM(G38:G43)","v":0},{"$f":"SUM(H38:H43)","v":0},{"$f":"SUM(I38:I43)","v":0},{"$f":"SUM(J38:J43)","v":0},0,0,0,0,0,0,0,0,0,{"$f":"SUM(T38:T43)","v":0}]
["01",null,"Situción Económica",null,null,null,{"$f":"I38+K38+M38+O38+Q38+S38","v":0},{"$f":"J38+L38+N38+P38+R38+T38","v":0}]
["02",null,"Violencia",null,null,null,{"$f":"I39+K39+M39+O39+Q39+S39","v":0},{"$f":"J39+L39+N39+P39+R39+T39","v":0}]
["03",null,"Enfermedad",null,null,null,{"$f":"I40+K40+M40+O40+Q40+S40","v":0},{"$f":"J40+L40+N40+P40+R40+T40","v":0}]
["04",null,"Trabajo infantil",null,null,null,0,0]
["05",null,"Apoyo laboral agrícola",null,null,null,0,0]
["06",null,"Otros",null,null,null,0,0]
[null,null,"Nota: Los totales de esta tabla deben ser igual a la sumatoria de la tabla 101 en el rubro “Retirados”."]
[]
[null,null,"DATOS DEL DIRECTOR Y/O RESPONSABLE (S) DEL LLENADO DE LA CÉDULA"]
[]
[null,null,"NOMBRES Y APELLIDOS",null,null,null,null,"CARGO",null,null,null,"CORREO ELECTRÓNICO",null,null,null,null,"TELÉFONO"]
[1]
[2]
[3]
[]
[]
["DIRECTOR(A)"]
["SUB DIRECTOR(A)"]
["DOCENTE"]
["COORDINADOR(A)"]
["ASESOR"]
["ADMINISTRATIVO"]
["ASISTENTE"]
["AUXILIAR"]
["SECRETARIA(O)"]
["ESTADÍSTICO"]
["ESPECIALISTA"]
["BIBLIOTECARIO"]
["CARE"]
["COMANDANTE PNP"]
["CONTADOR"]
["DAIP"]
["DIGITADOR(A)"]
["GERENTE"]
["JEFE ACADÉMICO"]
["JEFE ADMINISTRATIVO"]
["JEFE DE ÁREA"]
["JEFE DE LABORATORIO"]
["JEFE DE PERSONAL"]
["JEFE DE SEDE"]
["JEFE DE UNIDAD"]
["OFICINISTA"]
["OPERADOR DE SISTEMAS"]
["PERSONAL DE SERVICIO"]
["PROGRAMADOR"]
["PROMOTOR(A)"]
["PSICOLOGO"]
["REGISTRADOR(A)"]
["REPRESENTANTE LEGAL"]
["SOPORTE TECNOLOGICO"]
["TÉC. ADMINISTRATIVO"]
["TESORERO(A)"]
["TRABAJADOR SOCIAL"]
["TUTOR"]
["OTROS"]

{"sheet":"Enviar","index":2,"n_rows":9,"n_cols":3,"rows_kept":9,"cut":false,"hidden":true,"merged":[[0,0,0,3],[1,0,1,3]]}
["CENSO ESCOLAR 2024"]
["RESULTADO DEL EJERCICIO EDUCATIVO"]
[]
[]
[null,"Paso 1:","Realice el ENVÍO con su clave EOL."]
[]
[null,"Paso 2:","Una vez realizado el ENVÍO,  Revise su constancia de envio."]
[]
[null,"  ADVERTENCIA","Asegúrese de registrar toda la información del nivel informante"]